[Event "African Games Rapid Open 2019"]
[Site "Casablanca"]
[Date "2019.08.27"]
[Round "7.10"]
[White "Gohil, Mehul"]
[Black "Ssegwanyi, Arthur"]
[Result "0-1"]
[ECO "D32"]
[WhiteElo "2076"]
[BlackElo "2335"]
[Annotator "NA"]
[PlyCount "68"]
[EventDate "2019.08.26"]
[EventType "team-tourn"]
[EventCountry "MAR"]
[SourceTitle "playchess.com"]
[Source "ChessBase"]
[SourceQuality "1"]
[TimeControl "900+10"]

1. d4 {[%emt 0:00:35]} d5 {[%emt 0:00:00]} 2. c4 {[%emt 0:00:08]} e6 {[%emt 0:00:00]} 3. Nc3 {[%emt 0:00:03]} c5 {[%emt 0:00:11]} 4. cxd5 {[%emt 0:00:24]} cxd4 {[%emt 0:00:07]} 5. Qxd4 {[%emt 0:00:23]} Nc6 {[%emt 0:00:03]} 6. Qa4 {[%emt 0:00:48]} exd5 {[%emt 0:00:09]} 7. Bf4 {[%emt 0:00:29]} Bb4 {[%emt 0:02:46]} 8. a3 {[%emt 0:02:26]} Ba5 {[%emt 0:01:31]} 9. e3 {[%emt 0:00:27]} Qf6 {[%emt 0:03:53]} 10. Rc1 {[%emt 0:02:12]} Nge7 {[%emt 0:01:04]} 11. Nf3 {[%emt 0:00:21]} O-O {[%emt 0:00:37]} 12. Be2 {[%emt 0:00:25]} h6 {[%emt 0:00:33]} 13. O-O {[%emt 0:00:26]} Bf5 {[%emt 0:01:28]} 14. Rfd1 {[%emt 0:00:53]} Rad8 {[%emt 0:00:04]} 15. b4 {[%emt 0:02:38]} Bb6 {[%emt 0:00:33]} 16. b5 {[%emt 0:00:56]} Na5 {[%emt 0:00:16]} 17. Qb4 {[%emt 0:00:25]} Rfe8 {[%emt 0:01:02]} 18. Na4 {[%emt 0:00:17]} Ng6 {[%emt 0:00:50]} 19. Bg3 {[%emt 0:00:13]} Re4 {[%emt 0:00:05]} 20. Nd4 {[%emt 0:00:11]} Bxd4 {[%emt 0:00:14]} 21. Rxd4 {[%emt 0:00:07]} b6 {[%emt 0:00:06]} 22. Rcd1 {[%emt 0:00:23]} Rxd4 {[%emt 0:00:10]} 23. Qxd4 {[%emt 0:00:38]} Qe7 {[%emt 0:00:33]} 24. Qb4 {[%emt 0:00:25]} Bc2 {[%emt 0:00:17]} 25. Rd2 {[%emt 0:01:32]} Bxa4 {[%emt 0:00:21]} 26. Qxa4 {[%emt 0:00:03]} Ne5 {[%emt 0:00:36]} 27. Bxe5 {[%emt 0:00:24]} Qxe5 {[%emt 0:00:02]} 28. g3 {[%emt 0:00:10]} Qc3 {[%emt 0:00:25]} 29. Rc2 {[%emt 0:00:18]} Qe1+ 30. Kg2 Rd6 {[%emt 0:00:23]} 31. Bd3 {[%emt 0:00:26]} Rd8 {[%emt 0:01:08]} 32. Rc7 {[%emt 0:00:17]} d4 {[%emt 0:00:22]} 33. exd4 {[%emt 0:00:23]} Qe6 {[%emt 0:00:02]} 34. Be2 {[%emt 0:00:24]} Qxe2 {[%emt 0:00:05]} 0-1

[Event "African Games Rapid Open 2019"]
[Site "Casablanca"]
[Date "2019.08.27"]
[Round "7.12"]
[White "Ebosse, Kingue Victor Patric"]
[Black "Adu, Oladapo"]
[Result "0-1"]
[ECO "B51"]
[WhiteElo "2055"]
[BlackElo "2273"]
[Annotator "NA"]
[PlyCount "90"]
[EventDate "2019.08.26"]
[EventType "team-tourn"]
[EventCountry "MAR"]
[SourceTitle "playchess.com"]
[Source "ChessBase"]
[SourceQuality "1"]
[TimeControl "900+10"]

1. e4 {[%emt 0:00:55]} c5 {[%emt 0:00:00]} 2. Nf3 {[%emt 0:00:01]} d6 {[%emt 0:00:00]} 3. Bb5+ {[%emt 0:00:14]} Nd7 {[%emt 0:00:07]} 4. O-O {[%emt 0:00:41]} Ngf6 {[%emt 0:00:08]} 5. Re1 {[%emt 0:00:07]} a6 {[%emt 0:00:04]} 6. Bf1 {[%emt 0:00:50]} e6 {[%emt 0:00:04]} 7. c3 {[%emt 0:00:02]} Be7 {[%emt 0:00:09]} 8. d4 {[%emt 0:00:02]} e5 {[%emt 0:00:15]} 9. a4 {[%emt 0:00:58]} b6 {[%emt 0:00:06]} 10. Bd3 {[%emt 0:00:46]} O-O {[%emt 0:00:11]} 11. Nbd2 {[%emt 0:00:23]} Qc7 {[%emt 0:00:03]} 12. Nf1 {[%emt 0:00:12]} Re8 {[%emt 0:00:02]} 13. Ng3 {[%emt 0:00:16]} g6 {[%emt 0:00:02]} 14. h3 {[%emt 0:00:32]} Bf8 {[%emt 0:00:07]} 15. d5 {[%emt 0:00:10]} c4 {[%emt 0:00:42]} 16. Bc2 {[%emt 0:00:12]} Rb8 {[%emt 0:00:01]} 17. Be3 {[%emt 0:00:49]} Bg7 {[%emt 0:00:08]} 18. Qd2 {[%emt 0:00:09]} Nc5 {[%emt 0:00:08]} 19. Bh6 {[%emt 0:00:41]} Bh8 {[%emt 0:00:07]} 20. Ng5 {[%emt 0:00:46]} Bg7 {[%emt 0:00:22]} 21. Bxg7 {[%emt 0:00:30]} Kxg7 {[%emt 0:00:03]} 22. f4 {[%emt 0:00:25]} exf4 {[%emt 0:01:15]} 23. Qxf4 {[%emt 0:00:09]} h6 {[%emt 0:00:24]} 24. Rf1 {[%emt 0:01:23]} Qe7 {[%emt 0:00:20]} 25. Nf3 {[%emt 0:01:47]} Ncd7 {[%emt 0:01:40]} 26. Rae1 {[%emt 0:00:12]} Ne5 {[%emt 0:00:10]} 27. Nd4 {[%emt 0:00:36]} Bd7 {[%emt 0:00:13]} 28. Re2 {[%emt 0:00:54]} Rf8 {[%emt 0:00:35]} 29. Ref2 {[%emt 0:01:15]} Ng8 {[%emt 0:00:22]} 30. Kh2 {[%emt 0:01:39]} Qg5 {[%emt 0:00:27]} 31. Qxg5 {[%emt 0:00:07]} hxg5 {[%emt 0:00:03]} 32. Nf3 {[%emt 0:00:20]} Nxf3+ {[%emt 0:00:12]} 33. gxf3 {[%emt 0:00:19]} b5 {[%emt 0:00:30]} 34. a5 {[%emt 0:00:01]} Nf6 {[%emt 0:00:33]} 35. Kg2 {[%emt 0:00:12]} Rh8 {[%emt 0:00:03]} 36. Rh1 {[%emt 0:00:01]} Rh4 {[%emt 0:00:05]} 37. Ne2 {[%emt 0:00:50]} Rbh8 {[%emt 0:00:05]} 38. Ng1 {[%emt 0:00:06]} Nh5 {[%emt 0:00:03]} 39. Kf1 {[%emt 0:00:08]} Ng3+ {[%emt 0:00:10]} 40. Kg2 {[%emt 0:00:06]} Nxh1 {[%emt 0:00:02]} 41. Kxh1 {[%emt 0:00:01]} Bxh3 {[%emt 0:00:04]} 42. Kh2 {[%emt 0:00:17]} Bf1+ {[%emt 0:00:03]} 43. Kg3 {[%emt 0:00:01]} Bh3 {[%emt 0:00:11]} 44. Ne2 {[%emt 0:00:01]} Bd7 {[%emt 0:00:05]} 45. Rf1 {[%emt 0:00:02]} Rh2 {[%emt 0:00:10]} 0-1

[Event "African Games Rapid Open 2019"]
[Site "Casablanca"]
[Date "2019.08.27"]
[Round "7.13"]
[White "Sang, Ricky"]
[Black "Oatlhotse, Providence"]
[Result "0-1"]
[ECO "A45"]
[WhiteElo "1971"]
[BlackElo "2252"]
[Annotator "ChessBase"]
[PlyCount "168"]
[EventDate "2019.08.26"]
[EventType "team-tourn"]
[EventCountry "MAR"]
[SourceTitle "playchess.com"]
[Source "ChessBase"]
[SourceQuality "1"]
[TimeControl "900+10"]

1. d4 {[%emt 0:00:14]} Nf6 {[%emt 0:00:00]} 2. Bf4 {[%emt 0:00:02]} d5 {[%emt 0:00:00]} 3. e3 c5 4. c3 {[%emt 0:00:05]} Nc6 {[%emt 0:00:00]} 5. Nd2 {[%emt 0:00:06]} Bg4 {[%emt 0:00:10]} 6. Be2 {[%emt 0:00:19]} Bxe2 {[%emt 0:00:02]} 7. Nxe2 {[%emt 0:00:03]} Qb6 {[%emt 0:00:05]} 8. Rb1 {[%emt 0:00:18]} cxd4 {[%emt 0:00:17]} 9. exd4 {[%emt 0:00:03]} e6 {[%emt 0:00:04]} 10. O-O {[%emt 0:00:04]} Be7 {[%emt 0:00:04]} 11. Ng3 {[%emt 0:00:35]} O-O {[%emt 0:00:05]} 12. Nf3 {[%emt 0:00:07]} Qa6 {[%emt 0:00:11]} 13. a3 Na5 {[%emt 0:00:06]} 14. Ne5 {[%emt 0:00:22]} Nc4 {[%emt 0:00:04]} 15. Re1 {[%emt 0:00:19]} Rac8 {[%emt 0:00:33]} 16. Qe2 {[%emt 0:00:09]} Nxe5 {[%emt 0:01:04]} 17. Bxe5 {[%emt 0:00:02]} Qxe2 {[%emt 0:00:03]} 18. Rxe2 {[%emt 0:00:05]} Nd7 {[%emt 0:00:16]} 19. Bf4 {[%emt 0:00:52]} Bh4 {[%emt 0:00:30]} 20. Nf1 {[%emt 0:00:28]} Nb6 {[%emt 0:00:35]} 21. Nd2 {[%emt 0:00:18]} Rc6 {[%emt 0:00:19]} 22. g3 {[%emt 0:01:34]} Bf6 {[%emt 0:00:08]} 23. h4 {[%emt 0:00:10]} h6 {[%emt 0:00:09]} 24. Kg2 {[%emt 0:00:09]} Rfc8 {[%emt 0:00:06]} 25. Be5 {[%emt 0:00:38]} Be7 {[%emt 0:00:11]} 26. h5 {[%emt 0:00:42]} Na4 {[%emt 0:00:10]} 27. Nf1 {[%emt 0:04:48]} Rb6 {[%emt 0:00:11]} 28. Rc2 {[%emt 0:01:03]} Rxc3 {[%emt 0:04:11]} 29. Rxc3 {[%emt 0:00:23]} Nxc3 {[%emt 0:00:07]} 30. Rc1 {[%emt 0:00:14]} Ne4 {[%emt 0:01:26]} 31. Rc8+ {[%emt 0:00:34]} Kh7 {[%emt 0:00:38]} 32. b4 {[%emt 0:00:12]} f6 {[%emt 0:04:03]} 33. Bb8 {[%emt 0:01:29]} Ra6 {[%emt 0:00:58]} 34. Re8 {[%emt 0:01:51]} Bd6 {[%emt 0:00:21]} 35. Bxd6 {[%emt 0:00:03]} Rxd6 {[%emt 0:00:18]} 36. Re7 {[%emt 0:00:10]} Rb6 {[%emt 0:00:06]} 37. Ne3 {[%emt 0:00:12]} Kg8 {[%emt 0:01:15]} 38. f3 {[%emt 0:01:13]} Nc3 {[%emt 0:00:18]} 39. Rc7 Nb5 {[%emt 0:00:16]} 40. Rc8+ {[%emt 0:00:11]} Kf7 {[%emt 0:00:07]} 41. Nc2 {[%emt 0:00:04]} Rc6 {[%emt 0:00:13]} 42. Rxc6 {[%emt 0:00:09]} bxc6 {[%emt 0:00:01]} 43. a4 {[%emt 0:00:10]} Nc3 {[%emt 0:00:14]} 44. a5 {[%emt 0:00:09]} Ke7 {[%emt 0:00:04]} 45. Kf2 {[%emt 0:00:06]} e5 {[%emt 0:00:35]} 46. Ke3 {[%emt 0:00:22]} Nb5 {[%emt 0:00:02]} 47. g4 {[%emt 0:00:26]} Ke6 {[%emt 0:00:50]} 48. dxe5 {[%emt 0:00:21]} fxe5 {[%emt 0:00:06]} 49. Ne1 {[%emt 0:00:09]} d4+ {[%emt 0:00:13]} 50. Kd3 {[%emt 0:00:23]} Kd5 {[%emt 0:00:13]} 51. Nc2 {[%emt 0:00:13]} a6 {[%emt 0:00:13]} 52. Ne1 {[%emt 0:00:02]} Nd6 {[%emt 0:00:36]} 53. Nc2 {[%emt 0:00:14]} c5 {[%emt 0:00:06]} 54. bxc5 {[%emt 0:00:08]} Kxc5 {[%emt 0:00:01]} 55. Ne1 {[%emt 0:00:22]} Kd5 {[%emt 0:00:29]} 56. Nc2 {[%emt 0:00:04]} Kc5 {[%emt 0:00:08]} 57. Ne1 {[%emt 0:00:02]} Nc4 {[%emt 0:00:23]} 58. Nc2 {[%emt 0:00:11]} Nxa5 {[%emt 0:00:06]} 59. f4 {[%emt 0:00:18]} Nc6 {[%emt 0:00:03]} 60. fxe5 {[%emt 0:00:04]} Nxe5+ {[%emt 0:00:01]} 61. Ke4 {[%emt 0:00:02]} Nxg4 {[%emt 0:00:01]} 62. Nxd4 {[%emt 0:00:04]} Nf6+ {[%emt 0:00:01]} 63. Ke5 {[%emt 0:00:07]} Ng4+ {[%emt 0:00:15]} 64. Ke4 {[%emt 0:00:07]} Nf6+ {[%emt 0:00:15]} 65. Ke5 {[%emt 0:00:01]} Nxh5 {[%emt 0:00:02]} 66. Ne6+ {[%emt 0:00:06]} Kb4 {[%emt 0:00:03]} 67. Kf5 {[%emt 0:00:02]} a5 {[%emt 0:00:10]} 68. Nd4 {[%emt 0:00:19]} Nf6 {[%emt 0:00:23]} 69. Kg6 {[%emt 0:00:21]} Ne8 {[%emt 0:00:02]} 70. Kf7 {[%emt 0:00:06]} h5 {[%emt 0:00:13]} 71. Kxe8 {[%emt 0:00:36]} h4 {[%emt 0:00:03]} 72. Kf7 {[%emt 0:00:12]} h3 {[%emt 0:00:05]} 73. Nf3 {[%emt 0:00:32]} g5 {[%emt 0:00:04]} 74. Nh2 {[%emt 0:00:02]} a4 {[%emt 0:00:01]} 75. Kf6 {[%emt 0:00:02]} a3 {[%emt 0:00:02]} 76. Kxg5 {[%emt 0:00:03]} a2 {[%emt 0:00:02]} 77. Kh4 {[%emt 0:00:01]} a1=Q {[%emt 0:00:20]} 78. Kxh3 {[%emt 0:00:02]} Kc4 {[%emt 0:00:17]} 79. Kg3 {[%emt 0:00:03]} Kd3 {[%emt 0:00:05]} 80. Nf3 {[%emt 0:00:01]} Ke3 {[%emt 0:00:05]} 81. Nh4 {[%emt 0:00:16]} Qg1+ {[%emt 0:01:03]} 82. Ng2+ {[%emt 0:00:18]} Ke2 {[%emt 0:00:21]} 83. Kh3 {[%emt 0:00:38]} Kf2 {[%emt 0:00:11]} 84. Nf4 {[%emt 0:00:34]} Qg3# {[%emt 0:00:06]} 0-1

[Event "African Games Rapid Open 2019"]
[Site "Casablanca"]
[Date "2019.08.27"]
[Round "7.14"]
[White "Amba, Oyon Marius Claude"]
[Black "Mushore, Emarald Takudzwa"]
[Result "0-1"]
[ECO "C84"]
[WhiteElo "1911"]
[BlackElo "2198"]
[Annotator "NA"]
[PlyCount "96"]
[EventDate "2019.08.26"]
[EventType "team-tourn"]
[EventCountry "MAR"]
[SourceTitle "playchess.com"]
[Source "ChessBase"]
[SourceQuality "1"]
[TimeControl "900+10"]

1. e4 {[%emt 0:00:00]} e5 {[%emt 0:00:00]} 2. Nf3 {[%emt 0:00:00]} Nc6 {[%emt 0:00:00]} 3. Bb5 {[%emt 0:00:00]} a6 {[%emt 0:00:00]} 4. Ba4 {[%emt 0:00:00]} Nf6 {[%emt 0:00:00]} 5. O-O {[%emt 0:00:00]} Be7 {[%emt 0:00:00]} 6. d4 {[%emt 0:00:08]} exd4 {[%emt 0:00:13]} 7. e5 {[%emt 0:00:02]} Nd5 {[%emt 0:00:03]} 8. Nxd4 {[%emt 0:00:02]} O-O {[%emt 0:00:14]} 9. Nf5 {[%emt 0:00:05]} Nb6 {[%emt 0:00:33]} 10. Qg4 {[%emt 0:00:14]} g6 {[%emt 0:00:02]} 11. Bh6 {[%emt 0:00:50]} Re8 {[%emt 0:00:23]} 12. Nc3 {[%emt 0:02:06]} d5 {[%emt 0:01:29]} 13. Nxe7+ {[%emt 0:02:18]} Qxe7 {[%emt 0:00:02]} 14. Qg3 {[%emt 0:00:21]} Nxa4 {[%emt 0:00:39]} 15. Nxd5 {[%emt 0:03:11]} Qxe5 {[%emt 0:00:36]} 16. Qxe5 {[%emt 0:00:47]} Rxe5 {[%emt 0:00:03]} 17. Nxc7 {[%emt 0:05:35]} Rb8 {[%emt 0:00:10]} 18. Bf4 {[%emt 0:00:56]} Re4 {[%emt 0:00:03]} 19. Bg3 {[%emt 0:00:24]} Nb6 {[%emt 0:00:56]} 20. Rad1 {[%emt 0:00:14]} Bf5 {[%emt 0:00:23]} 21. Nxa6 {[%emt 0:00:23]} Rd8 {[%emt 0:00:42]} 22. Rxd8+ {[%emt 0:00:12]} Nxd8 {[%emt 0:00:01]} 23. Nc5 {[%emt 0:00:20]} Rc4 {[%emt 0:00:07]} 24. Bc7 {[%emt 0:00:28]} Rxc5 {[%emt 0:00:28]} 25. Bxb6 {[%emt 0:00:03]} Rd5 {[%emt 0:00:02]} 26. c4 {[%emt 0:00:06]} Rd7 {[%emt 0:00:04]} 27. Re1 {[%emt 0:00:07]} Nc6 {[%emt 0:00:08]} 28. a3 {[%emt 0:00:32]} Bc2 {[%emt 0:00:54]} 29. h3 {[%emt 0:00:07]} Bb3 {[%emt 0:00:11]} 30. Re4 {[%emt 0:00:09]} f5 {[%emt 0:00:05]} 31. Re8+ {[%emt 0:00:04]} Kf7 {[%emt 0:00:03]} 32. Rh8 {[%emt 0:00:03]} Kg7 33. Re8 {[%emt 0:00:24]} Bxc4 {[%emt 0:00:06]} 34. b4 {[%emt 0:00:07]} Bb5 {[%emt 0:00:12]} 35. Ra8 {[%emt 0:00:08]} h5 {[%emt 0:00:29]} 36. h4 {[%emt 0:00:06]} Ne5 {[%emt 0:00:31]} 37. a4 {[%emt 0:00:09]} Ng4 {[%emt 0:00:02]} 38. g3 {[%emt 0:00:20]} Bc6 {[%emt 0:00:12]} 39. Rd8 {[%emt 0:00:12]} Rxd8 {[%emt 0:00:02]} 40. Bxd8 {[%emt 0:00:02]} Bxa4 {[%emt 0:00:02]} 41. f3 {[%emt 0:00:12]} Ne5 {[%emt 0:00:06]} 42. Kg2 {[%emt 0:00:04]} Bc6 {[%emt 0:00:02]} 43. Bc7 {[%emt 0:00:07]} Nxf3 {[%emt 0:00:04]} 44. b5 {[%emt 0:00:03]} Be4 {[%emt 0:00:06]} 45. Kf2 {[%emt 0:00:03]} Kf7 {[%emt 0:00:06]} 46. Ke3 {[%emt 0:00:01]} g5 {[%emt 0:00:19]} 47. hxg5 {[%emt 0:00:03]} Nxg5 {[%emt 0:00:02]} 48. Kd4 {[%emt 0:00:02]} Ne6+ {[%emt 0:00:02]} 0-1

[Event "African Games Rapid Open 2019"]
[Site "Casablanca"]
[Date "2019.08.27"]
[Round "7.16"]
[White "Traore, Bakary"]
[Black "Eichab, Charles"]
[Result "1/2-1/2"]
[ECO "C11"]
[WhiteElo "2189"]
[BlackElo "2016"]
[Annotator "NA"]
[PlyCount "88"]
[EventDate "2019.08.26"]
[EventType "team-tourn"]
[EventCountry "MAR"]
[SourceTitle "playchess.com"]
[Source "ChessBase"]
[SourceQuality "1"]
[TimeControl "900+10"]

1. e4 {[%emt 0:00:00]} e6 {[%emt 0:00:00]} 2. d4 {[%emt 0:00:00]} d5 {[%emt 0:00:00]} 3. Nc3 {[%emt 0:00:00]} Nf6 {[%emt 0:00:00]} 4. e5 {[%emt 0:00:36]} Nfd7 {[%emt 0:00:00]} 5. f4 {[%emt 0:00:01]} c5 {[%emt 0:00:00]} 6. Nf3 {[%emt 0:00:01]} Nc6 {[%emt 0:00:01]} 7. Be3 {[%emt 0:00:03]} a6 {[%emt 0:00:34]} 8. Qd2 {[%emt 0:00:08]} b5 {[%emt 0:00:08]} 9. dxc5 {[%emt 0:00:22]} Bxc5 {[%emt 0:00:07]} 10. Bxc5 {[%emt 0:00:52]} Nxc5 {[%emt 0:00:04]} 11. Nd4 {[%emt 0:00:01]} Nxd4 {[%emt 0:02:04]} 12. Qxd4 {[%emt 0:00:02]} Qb6 {[%emt 0:00:08]} 13. O-O-O {[%emt 0:00:55]} Bb7 {[%emt 0:00:37]} 14. b4 {[%emt 0:00:30]} Nd7 {[%emt 0:00:04]} 15. Qxb6 {[%emt 0:00:12]} Nxb6 {[%emt 0:00:02]} 16. Ne2 {[%emt 0:00:16]} Rc8 {[%emt 0:00:48]} 17. Nd4 {[%emt 0:00:03]} Ke7 {[%emt 0:00:41]} 18. Bd3 {[%emt 0:00:08]} Na4 {[%emt 0:01:28]} 19. Kd2 {[%emt 0:00:50]} Nc3 {[%emt 0:00:49]} 20. Ra1 {[%emt 0:00:21]} Rhd8 {[%emt 0:00:41]} 21. f5 {[%emt 0:00:32]} g6 {[%emt 0:04:52]} 22. fxe6 {[%emt 0:00:18]} fxe6 {[%emt 0:00:02]} 23. Rhf1 {[%emt 0:00:01]} Ne4+ {[%emt 0:00:32]} 24. Ke3 {[%emt 0:00:31]} Rf8 {[%emt 0:00:13]} 25. a4 {[%emt 0:01:22]} Rxf1 {[%emt 0:00:24]} 26. Bxf1 {[%emt 0:00:10]} bxa4 {[%emt 0:03:28]} 27. Rxa4 {[%emt 0:00:10]} Ra8 {[%emt 0:00:02]} 28. Ra5 {[%emt 0:00:17]} Ng5 {[%emt 0:00:18]} 29. Nb3 {[%emt 0:00:31]} Nf7 {[%emt 0:00:18]} 30. Kd4 {[%emt 0:00:02]} Nd8 {[%emt 0:00:00]} 31. Kc5 {[%emt 0:00:54]} Nc6 {[%emt 0:00:12]} 32. Ra1 {[%emt 0:00:04]} Nxe5 {[%emt 0:00:02]} 33. Kb6 {[%emt 0:00:08]} Bc8 {[%emt 0:00:01]} 34. Bxa6 {[%emt 0:00:35]} Bxa6 {[%emt 0:00:28]} 35. Rxa6 {[%emt 0:00:07]} Rb8+ {[%emt 0:00:15]} 36. Ka5 {[%emt 0:00:15]} Nc4+ {[%emt 0:00:26]} 37. Ka4 {[%emt 0:00:01]} Nb2+ {[%emt 0:00:11]} 38. Ka3 {[%emt 0:00:02]} Nc4+ {[%emt 0:00:03]} 39. Ka4 {[%emt 0:00:05]} Nb2+ {[%emt 0:00:52]} 40. Ka3 {[%emt 0:00:06]} Nc4+ {[%emt 0:00:16]} 41. Ka4 {[%emt 0:00:14]} Nb2+ {[%emt 0:00:23]} 42. Ka5 {[%emt 0:00:07]} Nc4+ {[%emt 0:00:03]} 43. Ka4 {[%emt 0:05:30]} Nb2+ {[%emt 0:00:02]} 44. Ka3 {[%emt 0:00:05]} Nc4+ {[%emt 0:00:01]} 1/2-1/2

[Event "African Games Rapid Open 2019"]
[Site "Casablanca"]
[Date "2019.08.27"]
[Round "7.17"]
[White "Marie, Patrick"]
[Black "Beukes, Dante M"]
[Result "0-1"]
[ECO "B24"]
[WhiteElo "1921"]
[BlackElo "2130"]
[Annotator "NA"]
[PlyCount "46"]
[EventDate "2019.08.26"]
[EventType "team-tourn"]
[EventCountry "MAR"]
[SourceTitle "playchess.com"]
[Source "ChessBase"]
[SourceQuality "1"]
[TimeControl "900+10"]

1. e4 {[%emt 0:00:00]} c5 {[%emt 0:00:09]} 2. Nc3 {[%emt 0:00:15]} Nc6 {[%emt 0:00:01]} 3. Bc4 {[%emt 0:00:09]} g6 {[%emt 0:00:10]} 4. d3 {[%emt 0:00:02]} Bg7 {[%emt 0:00:03]} 5. f4 {[%emt 0:00:10]} e6 {[%emt 0:00:03]} 6. f5 {[%emt 0:00:11]} exf5 {[%emt 0:03:11]} 7. Nf3 {[%emt 0:00:01]} Nge7 {[%emt 0:00:13]} 8. O-O {[%emt 0:00:05]} O-O {[%emt 0:00:21]} 9. Bg5 {[%emt 0:00:19]} h6 {[%emt 0:00:11]} 10. Bh4 {[%emt 0:00:42]} g5 {[%emt 0:00:43]} 11. Nxg5 {[%emt 0:01:39]} hxg5 {[%emt 0:00:23]} 12. Bxg5 {[%emt 0:00:01]} d5 {[%emt 0:02:16]} 13. Nxd5 {[%emt 0:00:07]} Qd6 {[%emt 0:00:05]} 14. Nxe7+ {[%emt 0:04:47]} Nxe7 {[%emt 0:00:05]} 15. Qh5 {[%emt 0:00:07]} Be6 {[%emt 0:02:29]} 16. Rf3 {[%emt 0:04:30]} fxe4 {[%emt 0:01:30]} 17. Bxe6 {[%emt 0:00:31]} exf3 {[%emt 0:00:23]} 18. Bxe7 {[%emt 0:00:09]} Qxe7 {[%emt 0:00:10]} 19. Bf5 {[%emt 0:00:03]} Qe3+ {[%emt 0:00:07]} 20. Kh1 {[%emt 0:00:06]} fxg2+ {[%emt 0:00:19]} 21. Kxg2 {[%emt 0:00:04]} Qh6 {[%emt 0:00:02]} 22. Qf3 {[%emt 0:00:13]} Rae8 {[%emt 0:00:19]} 23. Be4 {[%emt 0:00:10]} Re5 {[%emt 0:00:08]} 0-1

[Event "African Games Rapid Open 2019"]
[Site "Casablanca"]
[Date "2019.08.27"]
[Round "7.18"]
[White "Kouya, Tyeoulou Bernardin F"]
[Black "Kamara, Ansumana"]
[Result "1-0"]
[ECO "A48"]
[WhiteElo "1770"]
[BlackElo "1928"]
[Annotator "NA"]
[PlyCount "143"]
[EventDate "2019.08.26"]
[EventType "team-tourn"]
[EventCountry "MAR"]
[SourceTitle "playchess.com"]
[Source "ChessBase"]
[SourceQuality "1"]
[TimeControl "900+10"]

1. d4 {[%emt 0:00:00]} Nf6 {[%emt 0:01:08]} 2. Nf3 {[%emt 0:00:00]} g6 {[%emt 0:00:02]} 3. Bg5 {[%emt 0:00:00]} Bg7 {[%emt 0:00:03]} 4. Nbd2 {[%emt 0:00:00]} h6 {[%emt 0:00:02]} 5. Bh4 {[%emt 0:00:01]} O-O {[%emt 0:00:07]} 6. c3 {[%emt 0:00:03]} d6 {[%emt 0:00:18]} 7. e4 {[%emt 0:00:02]} c5 {[%emt 0:00:08]} 8. Bd3 {[%emt 0:00:12]} Nc6 {[%emt 0:00:05]} 9. d5 {[%emt 0:00:06]} Nb8 {[%emt 0:00:09]} 10. O-O {[%emt 0:00:08]} g5 {[%emt 0:00:06]} 11. Bg3 {[%emt 0:00:05]} Nh5 {[%emt 0:00:03]} 12. Rb1 {[%emt 0:00:17]} Bg4 {[%emt 0:00:19]} 13. Qb3 {[%emt 0:00:28]} Qb6 {[%emt 0:00:13]} 14. Ne1 {[%emt 0:00:45]} Nxg3 {[%emt 0:00:11]} 15. hxg3 {[%emt 0:00:01]} Qxb3 {[%emt 0:00:18]} 16. axb3 {[%emt 0:00:09]} Nd7 {[%emt 0:00:11]} 17. f3 {[%emt 0:00:08]} Bh5 {[%emt 0:00:07]} 18. g4 {[%emt 0:00:02]} Bg6 {[%emt 0:00:03]} 19. Ra1 {[%emt 0:00:08]} a6 {[%emt 0:00:04]} 20. Nc4 {[%emt 0:00:04]} Ne5 {[%emt 0:00:44]} 21. Nxe5 {[%emt 0:00:11]} Bxe5 {[%emt 0:00:05]} 22. Nc2 {[%emt 0:00:02]} b5 {[%emt 0:00:21]} 23. Ra5 {[%emt 0:00:04]} Rfb8 {[%emt 0:01:28]} 24. Rfa1 {[%emt 0:00:02]} c4 {[%emt 0:00:03]} 25. Be2 {[%emt 0:00:31]} cxb3 26. Nb4 Rb6 {[%emt 0:01:00]} 27. Bxb5 {[%emt 0:01:35]} Rab8 {[%emt 0:00:36]} 28. Bxa6 {[%emt 0:00:14]} Rxb4 {[%emt 0:00:03]} 29. cxb4 {[%emt 0:00:04]} Rxb4 {[%emt 0:00:06]} 30. Rb1 {[%emt 0:00:49]} h5 {[%emt 0:00:35]} 31. gxh5 {[%emt 0:00:06]} Bxh5 {[%emt 0:00:03]} 32. Rb5 {[%emt 0:00:04]} Ra4 {[%emt 0:00:24]} 33. Bc8 {[%emt 0:00:05]} Ra8 {[%emt 0:01:38]} 34. Bf5 {[%emt 0:00:18]} Kg7 {[%emt 0:00:30]} 35. Rxb3 {[%emt 0:00:04]} Kf6 {[%emt 0:00:04]} 36. Rb7 {[%emt 0:00:07]} e6 {[%emt 0:00:11]} 37. dxe6 {[%emt 0:00:02]} fxe6 {[%emt 0:00:02]} 38. Bh3 {[%emt 0:00:08]} Bd4+ {[%emt 0:00:23]} 39. Kf1 {[%emt 0:00:03]} Be8 {[%emt 0:00:10]} 40. g4 {[%emt 0:00:04]} Ba4 {[%emt 0:00:06]} 41. b3 {[%emt 0:00:00]} Bc6 {[%emt 0:00:07]} 42. Rc7 {[%emt 0:00:17]} Bb5+ {[%emt 0:00:05]} 43. Ke1 {[%emt 0:00:06]} Ra2 {[%emt 0:00:05]} 44. Bf1 {[%emt 0:00:10]} Bf2+ {[%emt 0:00:07]} 45. Kd1 {[%emt 0:00:05]} Bxf1 {[%emt 0:00:03]} 46. Rc2 {[%emt 0:00:06]} Rxc2 {[%emt 0:00:23]} 47. Kxc2 {[%emt 0:00:01]} Ke5 {[%emt 0:00:07]} 48. Rxf1 {[%emt 0:00:04]} Bc5 {[%emt 0:00:25]} 49. Kd3 {[%emt 0:00:03]} d5 {[%emt 0:00:13]} 50. exd5 {[%emt 0:00:04]} exd5 {[%emt 0:00:04]} 51. Rb1 {[%emt 0:00:04]} Bb4 {[%emt 0:00:06]} 52. Ke2 {[%emt 0:00:02]} d4 {[%emt 0:00:06]} 53. Ra1 {[%emt 0:00:01]} Kf4 {[%emt 0:01:16]} 54. Ra4 {[%emt 0:00:10]} Bc5 {[%emt 0:00:19]} 55. Ra5 {[%emt 0:00:09]} Be7 {[%emt 0:00:20]} 56. Rf5+ {[%emt 0:00:02]} Kg3 57. Kd3 Bd6 {[%emt 0:00:40]} 58. Kxd4 {[%emt 0:00:14]} Bf4 {[%emt 0:00:08]} 59. Ke4 {[%emt 0:00:12]} Bd2 {[%emt 0:00:09]} 60. Rf7 {[%emt 0:00:12]} Kf2 {[%emt 0:00:12]} 61. f4 {[%emt 0:00:06]} gxf4 {[%emt 0:00:21]} 62. Rxf4+ {[%emt 0:00:02]} Kg3 {[%emt 0:00:06]} 63. Rf8 {[%emt 0:00:24]} Kxg4 {[%emt 0:00:04]} 64. Rg8+ {[%emt 0:00:01]} Kh5 {[%emt 0:00:02]} 65. Kf5 {[%emt 0:00:04]} Kh6 {[%emt 0:00:03]} 66. Rg2 {[%emt 0:00:03]} Bb4 {[%emt 0:00:05]} 67. Rg4 {[%emt 0:00:02]} Be1 {[%emt 0:00:31]} 68. b4 {[%emt 0:00:01]} Bf2 {[%emt 0:00:05]} 69. b5 {[%emt 0:00:01]} Kh7 {[%emt 0:00:04]} 70. Kf6 {[%emt 0:00:03]} Bb6 {[%emt 0:00:18]} 71. Kf7 {[%emt 0:00:01]} Kh6 {[%emt 0:00:02]} 72. Rg6+ {[%emt 0:00:02]} 1-0